fUSD/lending_fUSD_20260519
["ID","MTS","AMOUNT","RATE_DAILY","PERIOD"]
[422633091,1779185439000,-151.0,0.00017352,2]
[422633089,1779185439000,-151.0,0.00017352,2]
[422633093,1779185439000,-151.0,0.00017352,2]
[422633098,1779185439000,-151.0,0.00017352,2]
[422633097,1779185439000,-151.0,0.00017352,2]
[422633100,1779185439000,-151.0,0.00017352,2]
[422633114,1779185439000,-151.0,0.00017352,2]
[422633110,1779185439000,-151.0,0.00017352,2]
[422633116,1779185439000,-151.0,0.00017352,2]
[422633106,1779185439000,-151.0,0.00017352,2]
[422633095,1779185439000,-151.0,0.00017352,2]
[422633112,1779185439000,-151.0,0.00017352,2]
[422633108,1779185439000,-151.0,0.00017352,2]
[422633104,1779185439000,-151.0,0.00017352,2]
[422633118,1779185439000,-151.0,0.00017352,2]
[422633120,1779185439000,-151.0,0.00017352,2]
[422633125,1779185439000,-151.0,0.00017352,2]
[422633126,1779185439000,-151.0,0.00017352,2]
[422633122,1779185439000,-151.0,0.00017352,2]
[422633129,1779185439000,-151.0,0.00017352,2]
[422633011,1779185439000,-166.66,0.00015778,2]
[422633076,1779185439000,-151.0,0.00017352,2]
[422633074,1779185439000,-277.53845302,0.00017352,2]
[422633131,1779185439000,-151.0,0.00017352,2]
[422633068,1779185439000,-679.0,0.00017289,2]
[422633072,1779185439000,-500.0,0.00017352,2]
[422633005,1779185439000,-296.94706668,0.00015577,2]
[422633015,1779185439000,-300.0,0.00016,2]
[422633017,1779185439000,-169.0,0.00016019,2]
[422633019,1779185439000,-299.99,0.00016116,4]
[422633022,1779185439000,-4482.21,0.00016116,2]
[422633026,1779185439000,-3161.14827423,0.00016299,2]
[422633024,1779185439000,-150.99,0.00016116,2]
[422633028,1779185439000,-1000.0,0.000163,2]
[422633040,1779185439000,-337.2,0.00016438,2]
[422633036,1779185439000,-150.0,0.000164,8]
[422633032,1779185439000,-3161.14827423,0.00016378,2]
[422633034,1779185439000,-3161.14827423,0.00016387,2]
[422633038,1779185439000,-3916.95904553,0.00016431,2]
[422633007,1779185439000,-500.0,0.00015577,2]
[422633042,1779185439000,-306.49569417,0.00016438,2]
[422633030,1779185439000,-350.0,0.00016317,2]
[422633058,1779185439000,-3161.14827423,0.00016615,2]
[422633062,1779185439000,-536.10717651,0.00016948,2]
[422633050,1779185439000,-5624.06535761,0.000165,2]
[422633052,1779185439000,-3161.14827423,0.00016562,2]
[422633064,1779185439000,-532.0,0.00017101,2]
[422633066,1779185439000,-2682.0,0.0001715,5]
[422633054,1779185439000,-6056.80692359,0.00016572,2]
[422633056,1779185439000,-156.9,0.000166,2]
[422633046,1779185439000,-3161.14827423,0.00016467,2]
[422633048,1779185439000,-3161.14827423,0.0001648,2]
[422633044,1779185439000,-225.4,0.00016438,2]
[422633060,1779185439000,-617.92,0.00016856,2]
[422633187,1779185440000,-1108.32375824,0.000185,2]
[422633191,1779185440000,-1108.32375824,0.000187,2]
[422633189,1779185440000,-500.0,0.00018523,2]
[422633188,1779185440000,-500.0,0.00018523,2]
[422633184,1779185440000,-192.34325036,0.00018448,2]
[422633192,1779185440000,-300.0,0.00018719,2]
[422633185,1779185440000,-2157.14243826,0.00018448,2]
[422633193,1779185440000,-101843.33,0.0001872,2]
[422633182,1779185440000,-156.9,0.000184,2]
[422633179,1779185440000,-308.0,0.000181,2]
[422633190,1779185440000,-500.0,0.00018523,2]
[422633183,1779185440000,-337.2,0.0001841,2]
[422633196,1779185440000,-289.0,0.00019,2]
[422633194,1779185440000,-617.92,0.00018729,2]
[422633198,1779185440000,-260.0,0.00019,2]
[422633195,1779185440000,-2236.95670848,0.00018996,2]
[422633205,1779185440000,-400.0,0.0002,2]
[422633197,1779185440000,-224.0,0.00019,2]
[422633200,1779185440000,-536.10717651,0.00019277,2]
[422633201,1779185440000,-1230.669,0.00019503,2]
[422633206,1779185440000,-182.0,0.0002,2]
[422633202,1779185440000,-4308.767,0.00019503,2]
[422633203,1779185440000,-3633.0,0.00019503,2]
[422633177,1779185440000,-350.0,0.00018,2]
[422633204,1779185440000,-1027.41731528,0.00019544,2]
[422633199,1779185440000,-5397.69,0.00019178,2]
[422633178,1779185440000,-315.0,0.000181,2]
[422633164,1779185440000,-174.11907889,0.00017352,2]
[422633176,1779185440000,-1108.32375824,0.00018,2]
[422633208,1779185440000,-2500.0,0.0002,2]
[422633136,1779185440000,-151.0,0.00017352,2]
[422633133,1779185440000,-151.0,0.00017352,2]
[422633135,1779185440000,-151.0,0.00017352,2]
[422633139,1779185440000,-152.0,0.00017352,2]
[422633141,1779185440000,-151.0,0.00017352,2]
[422633143,1779185440000,-152.0,0.00017352,2]
[422633154,1779185440000,-152.0,0.00017352,2]
[422633145,1779185440000,-151.0,0.00017352,2]
[422633159,1779185440000,-152.0,0.00017352,2]
[422633162,1779185440000,-152.0,0.00017352,2]
[422633157,1779185440000,-152.0,0.00017352,2]
[422633147,1779185440000,-152.0,0.00017352,2]
[422633152,1779185440000,-152.0,0.00017352,2]
[422633151,1779185440000,-152.0,0.00017352,2]
[422633168,1779185440000,-719.62459969,0.0001746,2]
[422633166,1779185440000,-170.0,0.00017389,2]
[422633169,1779185440000,-618.59521715,0.000177,2]
[422633171,1779185440000,-500.0,0.00017808,2]
[422633172,1779185440000,-397.00175674,0.00017808,2]
[422633173,1779185440000,-156.587,0.000179,2]
[422633170,1779185440000,-500.0,0.00017808,2]
[422633174,1779185440000,-2080.17592889,0.000179,2]
[422633180,1779185440000,-1108.32375824,0.000182,2]
[422633181,1779185440000,-1108.32375824,0.000184,2]
[422633175,1779185440000,-6163.16745885,0.00018,2]
[422633217,1779185440000,-2386.0,0.0002,2]
[422633149,1779185440000,-151.0,0.00017352,2]
[422633207,1779185440000,-289.0,0.0002,2]
[422633238,1779185440000,-166.12,0.00020863,2]
[422633241,1779185440000,-151.0,0.00020863,2]
[422633243,1779185440000,-625.0,0.00020863,2]
[422633244,1779185440000,-935.097,0.00020863,2]
[422633245,1779185440000,-3544.0,0.00020863,2]
[422633246,1779185440000,-150.159,0.00020863,2]
[422633247,1779185440000,-1000.0,0.00021,2]
[422633248,1779185440000,-182.0,0.00021,2]
[422633260,1779185440000,-500.0,0.00021313,2]
[422633250,1779185440000,-224.0,0.00021,2]
[422633249,1779185440000,-289.0,0.00021,2]
[422633251,1779185440000,-260.0,0.00021,2]
[422633253,1779185440000,-5000.01,0.00021,2]
[422633259,1779185440000,-500.0,0.00021,2]
[422633252,1779185440000,-166.0,0.00021,2]
[422633256,1779185440000,-5000.01,0.00021,2]
[422633258,1779185440000,-3815.44228443,0.00021,2]
[422633254,1779185440000,-5000.01,0.00021,2]
[422633255,1779185440000,-5000.01,0.00021,2]
[422633257,1779185440000,-5000.01,0.00021,2]
[422633261,1779185440000,-500.0,0.00021313,2]
[422633262,1779185440000,-500.0,0.00021313,2]
[422633263,1779185440000,-504.19636444,0.00021313,2]
[422633265,1779185440000,-500.0,0.00021313,2]
[422633218,1779185440000,-2000.0,0.0002,2]
[422633236,1779185440000,-150.352,0.00020863,2]
[422633237,1779185440000,-250.0,0.00020863,2]
[422633264,1779185440000,-500.0,0.00021313,2]
[422633240,1779185440000,-150.972,0.00020863,2]
[422633219,1779185440000,-3000.0,0.0002,2]
[422633211,1779185440000,-260.0,0.0002,2]
[422633209,1779185440000,-224.0,0.0002,2]
[422633212,1779185440000,-150.0,0.0002,2]
[422633210,1779185440000,-2866.495056,0.0002,2]
[422633215,1779185440000,-154.45085107,0.0002,20]
[422633214,1779185440000,-164.15228212,0.0002,2]
[422633220,1779185440000,-300.0,0.00020327,2]
[422633216,1779185440000,-899.4,0.0002,2]
[422633221,1779185440000,-2230.0,0.00020327,5]
[422633222,1779185440000,-313449.8866549,0.00020328,2]
[422633225,1779185440000,-2547.6505245,0.0002033,2]
[422633213,1779185440000,-150.0,0.0002,2]
[422633223,1779185440000,-4549.3470337,0.00020328,2]
[422633234,1779185440000,-238.138,0.00020863,2]
[422633239,1779185440000,-220.59,0.00020863,2]
[422633228,1779185440000,-478.0,0.00020397,7]
[422633235,1779185440000,-192.979,0.00020863,2]
[422633231,1779185440000,-150.0,0.00020863,2]
[422633233,1779185440000,-230.306,0.00020863,2]
[422633242,1779185440000,-1354.0,0.00020863,2]
[422633230,1779185440000,-150.0,0.00020863,2]
[422633226,1779185440000,-3311.0037126,0.0002033,2]
[422633227,1779185440000,-337.2,0.00020381,2]
[422633232,1779185440000,-151.0,0.00020863,2]
[422633229,1779185440000,-617.92,0.00020602,2]
[422633224,1779185440000,-413.74,0.00020328,2]
[422633300,1779185441000,-500.0,0.0002137,2]
[422633291,1779185441000,-500.0,0.0002137,2]
[422633289,1779185441000,-500.0,0.0002137,2]
[422633299,1779185441000,-500.0,0.0002137,2]
[422633295,1779185441000,-500.0,0.0002137,2]
[422633297,1779185441000,-500.0,0.0002137,2]
[422633301,1779185441000,-500.0,0.0002137,2]
[422633312,1779185441000,-337.2,0.00022353,2]
[422633304,1779185441000,-536.10717651,0.00021606,2]
[422633292,1779185441000,-500.0,0.0002137,2]
[422633317,1779185441000,-617.92,0.00022475,2]
[422633303,1779185441000,-948.69,0.00021387,2]
[422633302,1779185441000,-850.0,0.0002137,2]
[422633305,1779185441000,-899.4,0.00021838,2]
[422633309,1779185441000,-289.0,0.00022,2]
[422633308,1779185441000,-182.0,0.00022,2]
[422633310,1779185441000,-224.0,0.00022,2]
[422633306,1779185441000,-5000.0,0.00021918,2]
[422633307,1779185441000,-450.0,0.00022,2]
[422633313,1779185441000,-532.0,0.00022377,7]
[422633315,1779185441000,-176.24,0.00022396,2]
[422633290,1779185441000,-500.0,0.0002137,2]
[422633311,1779185441000,-260.0,0.00022,2]
[422633293,1779185441000,-500.0,0.0002137,2]
[422633283,1779185441000,-500.0,0.0002137,2]
[422633288,1779185441000,-500.0,0.0002137,2]
[422633316,1779185441000,-3501.15056187,0.00022465,2]
[422633268,1779185441000,-413.74,0.00021314,2]
[422633267,1779185441000,-413.74,0.00021314,2]
[422633269,1779185441000,-151.0,0.00021367,2]
[422633272,1779185441000,-500.0,0.0002137,2]
[422633271,1779185441000,-625.0,0.0002137,2]
[422633266,1779185441000,-413.75,0.00021314,2]
[422633273,1779185441000,-500.0,0.0002137,2]
[422633270,1779185441000,-6466.77,0.0002137,2]
[422633274,1779185441000,-500.0,0.0002137,2]
[422633285,1779185441000,-500.0,0.0002137,2]
[422633298,1779185441000,-500.0,0.0002137,2]
[422633284,1779185441000,-500.0,0.0002137,2]
[422633276,1779185441000,-500.0,0.0002137,2]
[422633278,1779185441000,-500.0,0.0002137,2]
[422633277,1779185441000,-500.0,0.0002137,2]
[422633281,1779185441000,-500.0,0.0002137,2]
[422633279,1779185441000,-500.0,0.0002137,2]
[422633282,1779185441000,-500.0,0.0002137,2]
[422633280,1779185441000,-500.0,0.0002137,2]
[422633286,1779185441000,-500.0,0.0002137,2]
[422633287,1779185441000,-500.0,0.0002137,2]
[422633294,1779185441000,-500.0,0.0002137,2]
[422633296,1779185441000,-500.0,0.0002137,2]
[422633275,1779185441000,-500.0,0.0002137,2]
[422633324,1779185441000,-4000.0,0.00023,30]
[422633321,1779185441000,-101843.33,0.00022691,2]
[422633319,1779185441000,-3633.0,0.00022503,2]
[422633348,1779185441000,-536.10717651,0.00023935,2]
[422633350,1779185441000,-500.0,0.00024,2]
[422633346,1779185441000,-3544.0,0.00023863,2]
[422633351,1779185441000,-182.0,0.00024,2]
[422633352,1779185441000,-301.0,0.00024,2]
[422633355,1779185441000,-337.2,0.00024324,2]
[422633354,1779185441000,-269.0,0.00024,2]
[422633356,1779185441000,-2550.0,0.00024465,2]
[422633358,1779185441000,-151.0,0.00024658,2]
[422633353,1779185441000,-238.0,0.00024,2]
[422633357,1779185441000,-900.0,0.00024465,30]
[422633360,1779185441000,-151.0,0.00024658,2]
[422633359,1779185441000,-151.0,0.00024658,2]
[422633363,1779185441000,-1000.0,0.00024658,2]
[422633365,1779185441000,-1933.39,0.00024658,2]
[422633367,1779185441000,-5578.02484067,0.00025,2]
[422633364,1779185441000,-150.0,0.00024658,2]
[422633361,1779185441000,-246.09,0.00024658,2]
[422633366,1779185441000,-1933.56,0.00024658,2]
[422633362,1779185441000,-599.68,0.00024658,2]
[422633323,1779185441000,-2147.0,0.00023,5]
[422633370,1779185441000,-997.65530577,0.00025,2]
[422633368,1779185441000,-4423.03224881,0.00025,2]
[422633347,1779185441000,-150.0,0.00023863,2]
[422633345,1779185441000,-927.0,0.00023863,2]
[422633369,1779185441000,-198.0,0.00025,2]
[422633343,1779185441000,-1354.0,0.00023863,2]
[422633349,1779185441000,-159.74,0.00023945,2]
[422633322,1779185441000,-500.0,0.00022999,2]
[422633320,1779185441000,-300.0,0.0002269,2]
[422633314,1779185441000,-398.0,0.00022377,7]
[422633326,1779185441000,-289.0,0.00023,2]
[422633334,1779185441000,-150.0,0.00023863,2]
[422633332,1779185441000,-150.0,0.00023863,2]
[422633327,1779185441000,-224.0,0.00023,2]
[422633325,1779185441000,-182.0,0.00023,2]
[422633331,1779185441000,-899.4,0.00023675,2]
[422633330,1779185441000,-232.44373355,0.00023596,21]
[422633318,1779185441000,-1224.0,0.00022503,2]
[422633328,1779185441000,-260.0,0.00023,2]
[422633329,1779185441000,-364.0,0.00023,30]
[422633340,1779185441000,-150.0,0.00023863,2]
[422633341,1779185441000,-150.0,0.00023863,2]
[422633337,1779185441000,-150.0,0.00023863,2]
[422633344,1779185441000,-625.0,0.00023863,2]
[422633338,1779185441000,-150.0,0.00023863,2]
[422633335,1779185441000,-150.0,0.00023863,2]
[422633336,1779185441000,-150.0,0.00023863,2]
[422633333,1779185441000,-150.0,0.00023863,2]
[422633339,1779185441000,-150.0,0.00023863,2]
[422633342,1779185441000,-150.0,0.00023863,2]
[422633388,1779185442000,-350.0,0.00026,2]
[422633402,1779185442000,-450.0,0.00026204,2]
[422633397,1779185442000,-5485.91,0.00026078,2]
[422633393,1779185442000,-350.0,0.00026,2]
[422633390,1779185442000,-350.0,0.00026,2]
[422633399,1779185442000,-1348.0,0.00026204,2]
[422633400,1779185442000,-450.0,0.00026204,2]
[422633401,1779185442000,-450.0,0.00026204,2]
[422633403,1779185442000,-450.0,0.00026204,2]
[422633409,1779185442000,-337.2,0.00026296,2]
[422633406,1779185442000,-439.0,0.00026204,2]
[422633405,1779185442000,-450.0,0.00026204,2]
[422633407,1779185442000,-536.10717651,0.00026264,2]
[422633410,1779185442000,-4423.03224881,0.000263,2]
[422633411,1779185442000,-258.862199,0.00026397,2]
[422633408,1779185442000,-254.74537735,0.00026289,7]
[422633412,1779185442000,-151.0,0.0002647,7]
[422633414,1779185442000,-151.0,0.00026473,2]
[422633395,1779185442000,-350.0,0.00026,2]
[422633404,1779185442000,-450.0,0.00026204,2]
[422633392,1779185442000,-350.0,0.00026,2]
[422633383,1779185442000,-182.84263695,0.00025875,2]
[422633396,1779185442000,-324.0,0.00026,2]
[422633415,1779185442000,-151.0,0.00026473,2]
[422633372,1779185442000,-200.0,0.00025,10]
[422633371,1779185442000,-158.12,0.00025,2]
[422633375,1779185442000,-4423.03224881,0.000253,2]
[422633373,1779185442000,-300.0,0.000251,10]
[422633374,1779185442000,-182.84263695,0.00025266,2]
[422633376,1779185442000,-4423.03224881,0.000255,2]
[422633377,1779185442000,-1224.0,0.00025503,2]
[422633379,1779185442000,-899.4,0.00025513,7]
[422633391,1779185442000,-350.0,0.00026,2]
[422633378,1779185442000,-3633.0,0.00025503,2]
[422633382,1779185442000,-4423.03224881,0.000258,2]
[422633381,1779185442000,-188.77437179,0.00025671,2]
[422633385,1779185442000,-4423.03224881,0.00026,2]
[422633384,1779185442000,-254.74537735,0.0002598,7]
[422633386,1779185442000,-550.0,0.00026,2]
[422633387,1779185442000,-1219.0,0.00026,2]
[422633389,1779185442000,-350.0,0.00026,2]
[422633398,1779185442000,-349.0,0.00026128,2]
[422633394,1779185442000,-350.0,0.00026,2]
[422633380,1779185442000,-254.74537735,0.00025671,2]
[422633413,1779185442000,-151.0,0.00026473,2]
[422633432,1779185442000,-151.0,0.00026473,2]
[422633417,1779185442000,-151.0,0.00026473,2]
[422633449,1779185442000,-253.0,0.00027,7]
[422633444,1779185442000,-150.0,0.00026863,2]
[422633439,1779185442000,-3311.0037126,0.00026477,2]
[422633447,1779185442000,-254.74537735,0.00026906,30]
[422633445,1779185442000,-1233.12,0.00026863,2]
[422633448,1779185442000,-2000.0,0.00027,2]
[422633446,1779185442000,-3544.0,0.00026863,2]
[422633451,1779185442000,-272.11909577,0.00027093,2]
[422633455,1779185442000,-418.03,0.000271,2]
[422633443,1779185442000,-4423.03224881,0.000268,2]
[422633460,1779185442000,-646.0,0.00027123,2]
[422633456,1779185442000,-1132.0,0.000271,2]
[422633450,1779185442000,-2575.529742,0.0002701,2]
[422633452,1779185442000,-302.1,0.000271,2]
[422633459,1779185442000,-1575.62266919,0.00027123,2]
[422633453,1779185442000,-256.73,0.000271,2]
[422633454,1779185442000,-4423.03224881,0.000271,2]
[422633457,1779185442000,-290.49,0.000271,2]
[422633461,1779185442000,-481.0,0.00027123,2]
[422633463,1779185442000,-304.0,0.00027123,2]
[422633458,1779185442000,-15746.0,0.00027123,2]
[422633441,1779185442000,-4423.03224881,0.000265,2]
[422633416,1779185442000,-151.0,0.00026473,2]
[422633440,1779185442000,-182.84263695,0.00026484,2]
[422633418,1779185442000,-151.0,0.00026473,2]
[422633419,1779185442000,-151.0,0.00026473,2]
[422633425,1779185442000,-151.0,0.00026473,2]
[422633420,1779185442000,-897.36146,0.00026473,2]
[422633421,1779185442000,-897.36146,0.00026473,2]
[422633442,1779185442000,-254.74537735,0.00026598,14]
[422633422,1779185442000,-897.36146,0.00026473,2]
[422633423,1779185442000,-897.36146,0.00026473,2]
[422633427,1779185442000,-151.0,0.00026473,2]
[422633437,1779185442000,-4549.3470337,0.00026473,2]
[422633424,1779185442000,-151.0,0.00026473,2]
[422633429,1779185442000,-151.0,0.00026473,2]
[422633434,1779185442000,-151.0,0.00026473,2]
[422633433,1779185442000,-151.0,0.00026473,2]
[422633430,1779185442000,-151.0,0.00026473,2]
[422633431,1779185442000,-151.0,0.00026473,2]
[422633436,1779185442000,-313449.8866549,0.00026473,2]
[422633435,1779185442000,-151.0,0.00026473,2]
[422633462,1779185442000,-3038.0,0.00027123,2]
[422633438,1779185442000,-2547.6505245,0.00026477,2]
[422633426,1779185442000,-151.0,0.00026473,2]
[422633493,1779185443000,-502.0,0.0002779,2]
[422633495,1779185443000,-500.0,0.000278,7]
[422633489,1779185443000,-1059.571,0.0002753,16]
[422633488,1779185443000,-254.74537735,0.00027524,60]
[422633496,1779185443000,-600.0,0.00028,2]
[422633490,1779185443000,-253.0,0.00027671,14]
[422633492,1779185443000,-213.64523923,0.00027756,2]
[422633494,1779185443000,-166.0,0.00027798,3]
[422633497,1779185443000,-159.29,0.00028,2]
[422633505,1779185443000,-159.29,0.00028,2]
[422633500,1779185443000,-159.29,0.00028,2]
[422633499,1779185443000,-159.29,0.00028,2]
[422633510,1779185443000,-182.84263695,0.00028311,2]
[422633507,1779185443000,-500.0,0.00028082,9]
[422633501,1779185443000,-159.29,0.00028,2]
[422633508,1779185443000,-537.95,0.00028082,9]
[422633498,1779185443000,-159.29,0.00028,2]
[422633503,1779185443000,-159.29,0.00028,2]
[422633504,1779185443000,-159.29,0.00028,2]
[422633487,1779185443000,-150.0,0.00027397,2]
[422633491,1779185443000,-182.84263695,0.00027702,2]
[422633483,1779185443000,-300.0,0.00027397,2]
[422633475,1779185443000,-2895.78042953,0.00027397,2]
[422633484,1779185443000,-13560.08,0.00027397,10]
[422633506,1779185443000,-500.0,0.00028082,9]
[422633469,1779185443000,-254.74537735,0.00027215,60]
[422633464,1779185443000,-1378.0,0.00027123,2]
[422633470,1779185443000,-4423.03224881,0.000273,2]
[422633465,1779185443000,-190.0,0.00027123,2]
[422633468,1779185443000,-502.0,0.00027137,2]
[422633466,1779185443000,-266.0,0.00027123,2]
[422633467,1779185443000,-984.0,0.00027123,2]
[422633471,1779185443000,-899.4,0.0002735,7]
[422633482,1779185443000,-1465.85,0.00027397,2]
[422633472,1779185443000,-150.0,0.00027396,20]
[422633485,1779185443000,-13560.08,0.00027397,10]
[422633479,1779185443000,-1500.0,0.00027397,2]
[422633477,1779185443000,-500.0,0.00027397,2]
[422633474,1779185443000,-2895.78042953,0.00027397,2]
[422633480,1779185443000,-2410.74147271,0.00027397,2]
[422633486,1779185443000,-20959.73,0.00027397,10]
[422633481,1779185443000,-599.68,0.00027397,2]
[422633478,1779185443000,-150.0,0.00027397,2]
[422633476,1779185443000,-2895.78042953,0.00027397,2]
[422633473,1779185443000,-500.0,0.00027396,2]
[422633502,1779185443000,-159.29,0.00028,2]
[422633509,1779185443000,-337.2,0.00028267,2]
[422633511,1779185443000,-502.0,0.00028442,3]
[422633541,1779185443000,-151.0,0.00028624,7]
[422633540,1779185443000,-151.0,0.00028624,7]
[422633536,1779185443000,-151.0,0.00028624,7]
[422633539,1779185443000,-151.0,0.00028624,7]
[422633538,1779185443000,-151.0,0.00028624,7]
[422633542,1779185443000,-151.0,0.00028624,7]
[422633537,1779185443000,-151.0,0.00028624,7]
[422633546,1779185443000,-274.662843,0.00028624,7]
[422633556,1779185443000,-159.28972,0.00028624,7]
[422633557,1779185443000,-159.28972,0.00028624,7]
[422633550,1779185443000,-338.091489,0.00028624,7]
[422633551,1779185443000,-338.091489,0.00028624,7]
[422633545,1779185443000,-151.0,0.00028624,7]
[422633547,1779185443000,-274.662843,0.00028624,7]
[422633552,1779185443000,-338.091489,0.00028624,7]
[422633553,1779185443000,-338.091489,0.00028624,7]
[422633554,1779185443000,-159.28972,0.00028624,7]
[422633555,1779185443000,-159.28972,0.00028624,7]
[422633549,1779185443000,-236.546212,0.00028624,7]
[422633558,1779185443000,-254.52837,0.00028624,7]
[422633514,1779185443000,-1300.0,0.00028486,60]
[422633544,1779185443000,-274.662843,0.00028624,7]
[422633535,1779185443000,-151.0,0.00028624,7]
[422633548,1779185443000,-274.662843,0.00028624,7]
[422633532,1779185443000,-151.0,0.00028624,7]
[422633513,1779185443000,-500.0,0.00028486,60]
[422633534,1779185443000,-151.0,0.00028624,7]
[422633515,1779185443000,-1943.0,0.00028486,60]
[422633517,1779185443000,-3633.0,0.00028503,2]
[422633512,1779185443000,-438.32061167,0.00028486,60]
[422633518,1779185443000,-2314.0,0.0002853,3]
[422633520,1779185443000,-21996.57474881,0.00028574,2]
[422633519,1779185443000,-151.0,0.00028571,7]
[422633521,1779185443000,-592.26607306,0.00028574,2]
[422633523,1779185443000,-610128.31382642,0.00028574,2]
[422633516,1779185443000,-1224.0,0.00028503,2]
[422633527,1779185443000,-239.50437,0.00028623,2]
[422633533,1779185443000,-151.0,0.00028624,7]
[422633522,1779185443000,-560.24345537,0.00028574,2]
[422633528,1779185443000,-152.96914,0.00028624,7]
[422633531,1779185443000,-151.0,0.00028624,7]
[422633524,1779185443000,-536.10717651,0.00028593,2]
[422633543,1779185443000,-293.616789,0.00028624,7]
[422633526,1779185443000,-431362.93054061,0.00028623,2]
[422633529,1779185443000,-152.577983,0.00028624,7]
[422633530,1779185443000,-151.0,0.00028624,7]
[422633525,1779185443000,-151.0,0.00028621,7]
[422633597,1779185444000,-1289.04,0.00028661,7]
[422633605,1779185444000,-1289.04,0.00028693,30]
[422633596,1779185444000,-261.68,0.00028661,7]
[422633594,1779185444000,-273.87,0.00028661,7]
[422633606,1779185444000,-449.6,0.00028693,30]
[422633593,1779185444000,-449.1,0.00028661,7]
[422633592,1779185444000,-1288.93,0.00028661,7]
[422633595,1779185444000,-602.18,0.00028661,7]
[422633591,1779185444000,-602.5,0.0002863,2]
[422633590,1779185444000,-449.6,0.0002863,2]
[422633599,1779185444000,-602.5,0.00028661,7]
[422633607,1779185444000,-602.5,0.00028693,30]
[422633601,1779185444000,-449.1,0.00028693,30]
[422633620,1779185444000,-261.68,0.00028756,7]
[422633603,1779185444000,-602.18,0.00028693,30]
[422633600,1779185444000,-1288.93,0.00028693,30]
[422633604,1779185444000,-261.68,0.00028693,30]
[422633598,1779185444000,-449.6,0.00028661,7]
[422633608,1779185444000,-1288.93,0.00028725,2]
[422633610,1779185444000,-273.87,0.00028725,2]
[422633609,1779185444000,-449.1,0.00028725,2]
[422633611,1779185444000,-602.18,0.00028725,2]
[422633612,1779185444000,-261.68,0.00028725,2]
[422633617,1779185444000,-449.1,0.00028756,7]
[422633616,1779185444000,-1288.93,0.00028756,7]
[422633588,1779185444000,-261.68,0.0002863,2]
[422633602,1779185444000,-273.87,0.00028693,30]
[422633587,1779185444000,-602.18,0.0002863,2]
[422633561,1779185444000,-254.52837,0.00028624,7]
[422633586,1779185444000,-449.1,0.0002863,2]
[422633615,1779185444000,-602.5,0.00028725,2]
[422633570,1779185444000,-897.36146,0.00028624,7]
[422633559,1779185444000,-254.52837,0.00028624,7]
[422633569,1779185444000,-897.36146,0.00028624,7]
[422633560,1779185444000,-254.52837,0.00028624,7]
[422633562,1779185444000,-151.0,0.00028624,7]
[422633565,1779185444000,-151.0,0.00028624,7]
[422633567,1779185444000,-151.0,0.00028624,7]
[422633563,1779185444000,-151.0,0.00028624,7]
[422633568,1779185444000,-151.0,0.00028624,7]